bitfinex/quotes_ETHUSD_20240828
["timestamp","ask_amount","ask_price","bid_price","bid_amount"]
[1724848707154,3.93152,2543.6,2543.2,2.4874]
[1724848707353,3.93152,2543.6,2543.2,10.51210392]
[1724848707527,3.93174,2543.4,2543.3,0.13433261]
[1724848707734,7.86348,2543.4,2543.3,0.13433261]
[1724848709533,10.86348,2543.4,2543.3,0.13433261]
[1724848710534,14.79522,2543.4,2543.3,0.13433261]
[1724848712100,14.79522,2543.4,2542.9,2.4576]
[1724848712101,3.93236,2543.0,2542.9,2.4576]
[1724848712799,7.86472,2543.0,2542.9,2.4576]
[1724848713669,3.93236,2543.0,2542.9,2.4576]
[1724848714821,7.86472,2543.0,2542.9,2.4576]
[1724848715021,3.93236,2543.0,2542.9,2.4576]
[1724848715376,8.651177,2543.0,2542.9,2.4576]
[1724848716057,8.651177,2543.0,2542.4,8.02470392]
[1724848716058,3.93288,2542.7,2542.5,2.3522]
[1724848716258,3.93298,2542.6,2542.5,2.3522]
[1724848716571,8.652546,2542.6,2542.5,2.3522]
[1724848716760,3.9336,2542.2,2542.1,8.02470392]
[1724848716964,3.93376,2542.1,2541.8,8.02470392]
[1724848717207,3.93376,2542.1,2541.9,2.2982]
[1724848717803,3.93354,2542.3,2541.9,2.2982]
[1724848718121,3.9336,2542.2,2541.9,2.2982]
[1724848718673,3.93354,2542.3,2541.9,2.2982]
[1724848719304,3.93354,2542.3,2542.1,2.4904]
[1724848719511,7.86709,2542.3,2542.1,2.4904]
[1724848719670,7.86709,2542.3,2542.2,0.13400327]
[1724848720013,3.93195,2543.3,2542.7,3.93274]
[1724848720165,0.393072,2544.0,2542.8,2.3214]
[1724848720166,0.4198,2543.8,2542.8,2.3214]
[1724848720380,0.4198,2543.8,2542.3,0.07865074]
[1724848720381,3.93247,2543.0,2542.4,2.3214]
[1724848720583,3.93214,2543.2,2542.6,3.93285]
[1724848720818,3.93214,2543.2,2542.7,2.3214]
[1724848721032,3.93151,2543.6,2543.0,2.3214]
[1724848721324,3.93177,2543.4,2543.0,2.3214]
[1724848726119,3.93152,2543.6,2543.0,2.3214]
[1724848726395,0.693152,2543.6,2543.3,2.2639]
[1724848726595,3.0,2543.7,2543.3,6.19577]
[1724848727445,3.0,2543.7,2543.3,2.2639]
[1724848727594,3.9309,2544.0,2543.5,2.2719]
[1724848728144,3.9309,2544.0,2543.6,0.13370727]
[1724848728632,3.93097,2543.9,2543.6,0.13370727]
[1724848729199,7.86203,2543.9,2543.6,0.13370727]
[1724848729397,3.93097,2543.9,2543.6,0.13370727]
[1724848730632,4.323826,2544.1,2543.6,0.13370727]
[1724848730633,7.86256,2543.7,2543.6,0.13370727]
[1724848730851,8.648816,2543.7,2543.6,0.13370727]
[1724848731004,3.93151,2543.6,2543.2,2.33]
[1724848731412,3.93174,2543.4,2543.3,0.12852419]
[1724848731743,7.8636,2543.4,2543.3,0.12852419]
[1724848732111,7.8636,2543.4,2543.2,2.33]
[1724848732112,7.86378,2543.3,2543.2,2.33]
[1724848732307,12.343318,2543.3,2543.2,2.33]
[1724848733723,4.479538,2543.3,2542.7,10.30290392]
[1724848733952,3.93267,2542.8,2542.7,2.2782]
[1724848734634,7.86534,2542.8,2542.7,2.2782]
[1724848734945,3.93301,2542.6,2542.4,2.2794]
[1724848735940,7.86608,2542.6,2542.4,2.2794]
[1724848736231,3.93301,2542.6,2542.4,2.2794]
[1724848737445,6.93276,2542.8,2542.4,2.2794]
[1724848737748,3.93306,2542.6,2542.4,2.2794]
[1724848737907,3.93313,2542.5,2542.4,2.2794]
[1724848738304,3.93358,2542.3,2542.1,2.3159]
[1724848738549,3.9336,2542.2,2542.1,2.3159]
[1724848738720,7.8672,2542.2,2542.1,2.3159]
[1724848738925,3.93391,2542.0,2541.9,8.02470392]
[1724848739246,3.93406,2541.9,2541.8,2.3159]
[1724848741553,3.93391,2542.0,2541.8,2.3159]
[1724848741846,3.93339,2542.4,2541.8,6.25002]
[1724848742049,3.93347,2542.3,2541.9,2.2579]
[1724848742218,3.93339,2542.4,2541.9,2.2579]
[1724848742418,3.93339,2542.4,2542.1,2.2579]
[1724848742646,7.86681,2542.4,2542.1,2.2579]
[1724848742845,3.93339,2542.4,2542.1,2.2579]
[1724848743051,3.93344,2542.3,2542.1,2.2579]
[1724848743215,3.9336,2542.2,2542.1,2.2579]
[1724848743413,7.8672,2542.2,2542.1,2.2579]
[1724848743818,3.93434,2541.8,2541.7,2.4073]
[1724848744355,3.93434,2541.8,2541.7,10.43200392]
[1724848744558,7.86868,2541.8,2541.7,10.43200392]
[1724848744712,7.86868,2541.8,2541.7,2.4073]
[1724848745485,7.86868,2541.8,2540.6,2.3811]
[1724848745486,3.93592,2540.7,2540.6,2.3811]
[1724848745664,3.93587,2540.8,2540.6,2.3811]
[1724848745828,3.9355,2541.0,2540.6,2.3811]
[1724848746032,3.93525,2541.2,2540.8,2.462]
[1724848746342,3.93497,2541.4,2540.9,2.462]
[1724848746562,3.93462,2541.6,2541.1,2.462]
[1724848746732,7.86929,2541.6,2541.2,0.07869456]
[1724848747065,3.93462,2541.6,2541.2,0.07869456]
[1724848747374,3.93462,2541.6,2541.2,0.19496569]
[1724848747727,3.93472,2541.5,2541.2,0.19496569]
[1724848748235,3.93472,2541.5,2541.3,2.2935]
[1724848748765,3.934,2542.0,2541.5,2.2823]
[1724848748939,7.86738,2542.2,2541.5,2.36098458]
[1724848749273,1.84475747,2542.8,2541.7,2.2823]
[1724848749274,3.93401,2542.0,2541.7,2.2823]
[1724848749568,3.93415,2541.9,2541.8,0.11593543]
[1724848749871,3.93421,2541.8,2541.7,2.2823]
[1724848750170,3.93421,2541.8,2541.7,2.39813865]
[1724848751931,3.93408,2541.9,2541.7,2.39813865]
[1724848752134,3.93408,2541.9,2541.8,2.64771387]
[1724848752366,3.93408,2541.9,2541.8,2.52371749]
[1724848753129,3.93353,2542.3,2541.9,2.3523]
[1724848753361,7.86712,2542.3,2541.9,2.43097238]
[1724848753559,3.93368,2542.2,2541.9,2.3523]
[1724848753875,3.93368,2542.2,2542.0,0.11563002]
[1724848754046,3.93375,2542.1,2542.0,0.11563002]
[1724848754445,7.8675,2542.1,2542.0,0.11563002]
[1724848754774,8.65425,2542.1,2542.0,0.11563002]
[1724848755778,3.93406,2541.9,2541.8,10.39820392]
[1724848756280,7.86812,2541.9,2541.8,10.39820392]
[1724848756637,3.93406,2541.9,2541.8,10.39820392]
[1724848756839,3.93401,2542.0,2541.8,10.39820392]
[1724848757167,3.93371,2542.2,2541.8,10.39820392]
[1724848757879,3.93391,2542.0,2541.8,10.39820392]
[1724848758179,3.93406,2541.9,2541.8,10.39820392]
[1724848759379,7.86812,2541.9,2541.8,10.39820392]
[1724848764061,7.86812,2541.9,2541.8,10.51407584]
[1724848765084,11.80218,2541.9,2541.8,10.51407584]
[1724848765294,11.80218,2541.9,2541.8,0.11587192]
[1724848765295,12.98237,2541.9,2541.8,0.11587192]
[1724848765481,19.91643,2541.9,2541.8,0.11587192]
[1724848765648,11.80356,2541.6,2541.5,2.4203]
[1724848766079,3.93499,2541.3,2541.2,10.44500392]
[1724848766753,7.86998,2541.3,2541.2,10.44500392]
[1724848766949,3.93499,2541.3,2541.2,10.44500392]
[1724848770106,7.86998,2541.3,2541.2,10.44500392]
[1724848770256,8.34920696,2541.3,2541.2,10.44500392]
[1724848770803,7.86998,2541.3,2541.2,10.44500392]
[1724848771089,7.86998,2541.3,2541.2,8.02470392]
[1724848771458,3.93494,2541.4,2541.2,10.36300392]
[1724848772259,3.93492,2541.4,2541.2,10.36300392]
[1724848772456,3.93499,2541.3,2541.2,10.36300392]
[1724848772704,7.86998,2541.3,2541.2,10.36300392]
[1724848773699,3.93499,2541.3,2541.2,10.36300392]
[1724848774193,3.93486,2541.4,2541.2,10.36300392]
[1724848774751,3.93456,2541.6,2541.3,2.48299917]
[1724848775005,3.93456,2541.6,2541.4,2.4043]
[1724848776207,3.93445,2541.7,2541.4,2.4043]
[1724848776365,3.93398,2542.0,2541.6,2.4542]
[1724848776567,7.868,2542.0,2541.7,8.10338232]
[1724848776868,3.93421,2541.8,2541.7,8.02470392]
[1724848779115,3.93421,2541.8,2541.7,8.14109596]
[1724848780914,3.93387,2542.1,2541.7,8.14109596]
[1724848781092,0.41169507,2542.8,2541.9,2.4722]
[1724848781414,3.93329,2542.4,2542.1,2.4722]
[1724848781563,3.93352,2542.3,2542.1,2.4722]
[1724848781767,3.9336,2542.2,2542.1,2.4722]
[1724848781984,3.9336,2542.2,2542.1,10.49690392]
[1724848782183,3.93352,2542.3,2542.1,10.49690392]
[1724848782419,3.93306,2542.6,2542.3,2.3664]
[1724848782567,3.93314,2542.5,2542.3,2.3664]
[1724848782768,7.86581,2542.7,2542.3,2.3664]
[1724848782993,3.93284,2542.7,2542.3,2.44506095]
[1724848783198,7.86578,2542.7,2542.3,3.73089203]
[1724848783697,3.93284,2542.7,2542.3,3.73089203]
[1724848783905,7.86577,2542.7,2542.3,3.73089203]
[1724848784112,3.93284,2542.7,2542.5,2.3499]
[1724848784307,3.93261,2542.9,2542.5,2.3499]
[1724848784545,3.93261,2542.9,2542.5,10.37460392]
[1724848784695,3.93276,2542.8,2542.5,10.37460392]
[1724848785032,3.93261,2542.9,2542.6,8.02470392]
[1724848785207,7.86525,2542.9,2542.6,8.02470392]
[1724848785407,7.86524,2542.9,2542.6,8.02470392]
[1724848785739,3.93278,2542.8,2542.6,8.02470392]
[1724848786192,3.93278,2542.8,2542.7,2.486]
[1724848786899,3.0,2543.1,2542.7,3.53569039]
[1724848786900,3.93227,2543.1,2542.7,3.53569039]
[1724848787132,0.41162326,2543.6,2542.9,2.474]
[1724848787133,3.93198,2543.3,2542.9,2.474]
[1724848787335,7.86397,2543.3,2542.9,2.474]
[1724848788241,3.93206,2543.2,2542.9,2.474]
[1724848788397,3.93222,2543.1,2542.9,2.474]
[1724848788594,3.93236,2543.0,2542.9,2.474]
[1724848789252,7.86406,2543.3,2542.9,2.474]
[1724848789443,3.9317,2543.5,2543.0,2.2547]
[1724848789743,3.9317,2543.5,2543.2,2.2547]
[1724848789744,3.93177,2543.4,2543.2,2.2547]
[1724848790514,3.93189,2543.3,2543.2,2.2547]
[1724848790716,7.86378,2543.3,2543.2,2.2547]
[1724848791854,3.0,2543.7,2543.1,8.02470392]
[1724848791855,7.8641,2543.2,2543.1,8.02470392]
[1724848793246,11.79615,2543.2,2543.1,8.02470392]
[1724848793432,3.93267,2542.8,2542.7,8.02470392]
[1724848794020,3.93267,2542.8,2542.7,8.13866257]
[1724848794858,3.93247,2543.0,2542.7,8.13866257]
[1724848795074,3.93247,2543.0,2542.8,2.3726]
[1724848795559,3.93247,2543.0,2542.9,0.11408858]
[1724848796139,3.93221,2543.1,2542.9,0.11408858]
[1724848796322,3.93221,2543.1,2543.0,2.3275]
[1724848796523,3.93221,2543.1,2543.0,2.44156744]
[1724848796725,7.86453,2543.1,2543.0,2.44156744]
[1724848797431,8.650983,2543.1,2543.0,0.11406744]
[1724848797833,3.93267,2542.8,2542.7,2.4311]
[1724848798078,7.86534,2542.8,2542.7,2.4311]
[1724848799767,7.86626,2542.5,2542.4,8.02470392]
[1724848802528,7.86658,2542.4,2542.3,2.3345]
[1724848804334,3.93314,2542.5,2542.3,2.3345]
[1724848804535,3.93329,2542.4,2542.3,2.3345]
[1724848805439,7.86658,2542.4,2542.3,2.3345]
[1724848805659,8.653238,2542.4,2542.3,2.3345]
[1724848805849,7.86658,2542.4,2542.3,2.3345]
[1724848806051,3.93329,2542.4,2542.3,2.3345]
[1724848806687,3.9331,2542.6,2542.3,2.3345]
[1724848806870,3.9331,2542.6,2542.4,8.02470392]
[1724848806871,3.93314,2542.5,2542.4,8.02470392]
[1724848807147,7.86628,2542.5,2542.4,8.02470392]
[1724848808647,12.979337,2542.5,2542.4,8.02470392]
[1724848809158,12.979337,2542.5,2542.4,8.13946938]
[1724848810652,7.86628,2542.5,2542.4,8.13946938]
[1724848812593,11.79942,2542.5,2542.4,8.13946938]
[1724848812798,11.79942,2542.5,2542.4,0.11476546]
[1724848813089,3.93375,2542.1,2542.0,2.3293]
[1724848813302,3.93375,2542.1,2542.0,10.35400392]
[1724848814597,3.93333,2542.4,2542.0,10.35400392]
[1724848814803,3.93236,2543.0,2542.2,2.3303]
[1724848815089,3.93236,2543.0,2542.1,8.10336605]
[1724848815090,3.93221,2543.1,2542.6,2.3201]
[1724848815263,3.93254,2542.9,2542.7,2.39874632]
[1724848815463,3.93254,2542.9,2542.7,2.3201]
[1724848815767,3.93267,2542.8,2542.7,2.3201]
[1724848815971,7.86534,2542.8,2542.7,2.3201]
[1724848816358,8.651874,2542.8,2542.7,2.3201]
[1724848817178,7.86534,2542.8,2542.7,2.3201]
[1724848818265,7.86534,2542.8,2542.3,8.02470392]
[1724848818266,3.93329,2542.4,2542.3,8.02470392]
[1724848818483,3.93344,2542.3,2542.2,8.02470392]
[1724848818678,3.93344,2542.3,2542.2,10.44120392]
[1724848821111,7.86688,2542.3,2542.2,10.44120392]
[1724848821480,7.86688,2542.3,2542.2,2.4165]
[1724848823980,7.86688,2542.3,2542.2,2.53089079]
[1724848824192,11.80032,2542.3,2542.2,0.11439079]
[1724848824396,7.8675,2542.1,2542.0,8.02470392]
[1724848824913,7.86782,2542.0,2541.9,2.4875]
[1724848828303,8.654602,2542.0,2541.9,2.4875]
[1724848829329,7.86782,2542.0,2541.9,2.4875]
[1724848829526,3.93391,2542.0,2541.9,2.4875]
[1724848829891,0.44081926,2542.6,2541.9,2.4875]
[1724848830125,3.93336,2542.4,2542.0,2.45666306]
[1724848830296,3.93278,2542.8,2542.0,2.45666306]
[1724848830491,3.93305,2542.6,2542.0,2.45666306]
[1724848830696,3.93339,2542.4,2542.2,2.4976]
[1724848831289,3.93314,2542.5,2542.2,2.4976]
[1724848831608,3.93314,2542.5,2542.4,2.4976]
[1724848833315,3.933,2542.6,2542.4,2.4976]
[1724848833621,7.86606,2542.6,2542.4,2.4976]
[1724848833935,3.93313,2542.5,2542.4,2.4976]
[1724848834841,3.93254,2542.9,2542.4,2.4976]
[1724848834842,3.93282,2542.7,2542.4,8.28233024]
[1724848835023,3.93229,2543.1,2542.5,2.40995611]
[1724848835208,3.93229,2543.1,2542.7,2.3313]
[1724848835412,3.93229,2543.1,2542.7,2.40994646]
[1724848836215,3.93209,2543.2,2542.8,0.07864645]
[1724848836419,3.93209,2543.2,2542.9,2.435]
[1724848836604,3.93207,2543.2,2543.0,0.07863908]
[1724848836864,3.93207,2543.2,2543.1,2.435]
[1724848837017,3.93189,2543.4,2543.1,2.435]
[1724848837352,3.93189,2543.4,2542.7,2.3793]
[1724848837353,3.93262,2542.9,2542.7,2.3793]
[1724848837498,3.93261,2542.9,2542.7,2.3793]
[1724848837941,7.86524,2542.9,2542.7,2.3793]
[1724848838237,3.93261,2542.9,2542.7,2.3793]
[1724848838701,7.86454,2543.1,2542.7,2.3793]
[1724848838898,3.93224,2543.1,2542.9,2.421]
[1724848839398,3.93224,2543.1,2543.0,0.19342607]
[1724848840244,3.93198,2543.3,2543.1,2.4662]
[1724848840452,7.8633,2543.5,2543.2,0.19282497]
[1724848840603,3.93163,2543.5,2543.3,2.4662]
[1724848840807,3.93177,2543.4,2543.3,2.4662]
[1724848841105,3.93177,2543.4,2543.3,2.65900064]
[1724848841506,3.93177,2543.4,2543.3,2.4662]
[1724848841745,7.86354,2543.4,2543.3,2.65898253]
[1724848841954,8.256717,2543.4,2543.3,2.65898253]
[1724848842113,7.86354,2543.4,2543.3,2.4662]
[1724848842633,7.86354,2543.4,2543.3,10.49090392]
[1724848843104,7.86354,2543.4,2543.3,10.68354159]
[1724848844439,8.52039855,2543.4,2543.3,10.68354159]
[1724848844639,8.52039855,2543.4,2543.3,8.21734159]
[1724848844839,12.45216855,2543.4,2543.3,8.21734159]
[1724848845154,16.38393855,2543.4,2543.3,8.21734159]
[1724848845309,20.88065852,2543.4,2543.3,7.67e-06]
[1724848845512,22.83932207,2543.4,2543.3,6.04e-06]
[1724848845725,0.4198,2543.3,2542.3,2.3194]
[1724848845907,3.93406,2541.9,2541.8,9.6894]
[1724848846237,3.93406,2541.9,2541.8,2.3194]
[1724848847560,7.86812,2541.9,2541.8,2.3194]
[1724848847915,3.93452,2541.6,2541.5,2.83840973]
[1724848848139,7.86904,2541.6,2541.5,2.83840973]
[1724848849043,3.93452,2541.6,2541.5,2.83840973]
[1724848850336,7.86904,2541.6,2541.5,2.83840973]
[1724848850735,7.86904,2541.6,2541.5,2.332]
[1724848851057,3.93452,2541.6,2541.5,2.332]
[1724848852022,7.86904,2541.6,2541.5,2.332]
[1724848853055,3.93452,2541.6,2541.5,2.51150716]
[1724848855159,3.93451,2541.7,2541.5,2.51150716]
[1724848855365,3.93432,2541.8,2541.5,2.82116795]
[1724848855522,3.93432,2541.8,2541.6,0.07868252]
[1724848855727,7.86869,2541.8,2541.6,0.07868252]
[1724848856041,7.86869,2541.8,2541.7,0.18212157]
[1724848856551,3.93432,2541.8,2541.7,0.18212157]
[1724848856963,3.93432,2541.8,2541.7,2.60352157]
[1724848858570,3.93408,2541.9,2541.7,2.60352157]
[1724848860853,3.93421,2541.8,2541.7,2.60352157]
[1724848861975,11.80263,2541.8,2541.7,2.60352157]
[1724848862180,12.982893,2541.8,2541.7,0.18212157]
[1724848862380,7.86936,2541.5,2541.4,2.3077]
[1724848864187,7.86936,2541.5,2541.4,2.49004873]
[1724848864406,3.93468,2541.5,2541.4,2.49004873]
[1724848864563,0.43480119,2542.3,2541.4,2.7390536]
[1724848864564,3.93443,2541.7,2541.4,2.7390536]
[1724848864767,3.93456,2541.6,2541.5,2.64088657]
[1724848865068,3.93456,2541.6,2541.5,2.47062437]
[1724848867904,3.93437,2541.7,2541.5,2.47062437]
[1724848868068,3.93452,2541.6,2541.5,2.47062437]
[1724848868489,3.93431,2541.8,2541.5,2.47062437]
[1724848868804,3.93407,2541.9,2541.7,2.3154]
[1724848869274,3.93421,2541.8,2541.7,2.3154]
[1724848870206,3.93408,2541.9,2541.7,2.3154]
[1724848870409,7.86737,2542.2,2541.9,2.3154]
[1724848870711,3.93378,2542.1,2542.0,0.0786689]
[1724848870868,3.93378,2542.1,2541.9,2.3154]
[1724848870869,3.93345,2542.3,2541.9,2.65123507]
[1724848871068,3.93329,2542.4,2542.1,2.364]
[1724848871310,3.93346,2542.3,2542.2,0.07866224]
[1724848871984,3.93329,2542.4,2542.3,2.2848]
[1724848873120,11.79987,2542.4,2542.3,2.2848]
[1724848873427,3.934,2542.0,2541.4,2.4915]
[1724848874083,3.93429,2541.8,2541.4,2.4915]
[1724848874283,3.93453,2541.6,2541.4,2.4915]
[1724848874484,7.86919,2541.6,2541.4,2.4915]
[1724848875011,3.93468,2541.5,2541.4,2.4915]
[1724848875576,7.86936,2541.5,2541.4,2.4915]
[1724848876012,3.93533,2541.1,2540.5,2.2862]
[1724848876216,3.93533,2541.1,2540.5,2.679826]
[1724848876421,3.93533,2541.1,2540.6,2.61952611]
[1724848876600,3.93533,2541.1,2540.8,2.4603]
[1724848876981,3.93533,2541.1,2540.9,0.15384618]
[1724848876982,3.93547,2541.0,2540.9,0.15384618]
[1724848877177,3.93533,2541.1,2540.9,0.15384618]
[1724848878233,3.93533,2541.1,2541.0,2.4001]
[1724848878724,3.93533,2541.1,2541.0,2.55392181]
[1724848879079,3.93478,2541.5,2541.0,2.80931399]
[1724848879282,3.93499,2541.3,2541.2,2.4001]
[1724848879912,3.93444,2541.7,2541.2,2.81713239]
[1724848880082,3.93463,2541.6,2541.4,2.4247]
[1724848880279,4.36822119,2542.4,2541.6,2.4247]
[1724848880280,3.93427,2541.8,2541.6,2.4247]
[1724848880522,3.93427,2541.8,2541.7,0.2503386]
[1724848880725,7.86856,2541.8,2541.7,0.15365128]
[1724848882520,7.86874,2541.7,2541.6,2.4247]
[1724848883520,3.93501,2541.3,2540.7,6.2942]
[1724848883835,3.93484,2541.4,2540.9,2.3583]
[1724848884120,3.93484,2541.4,2541.1,2.3583]
[1724848884491,3.93501,2541.3,2541.1,2.3583]
[1724848884692,3.93474,2541.5,2541.2,0.15393621]
[1724848884912,3.93484,2541.4,2541.3,2.4058]
[1724848885331,3.93474,2541.5,2541.3,2.55971185]
[1724848888186,3.93483,2541.4,2541.3,2.55971185]
[1724848888633,3.93483,2541.4,2541.3,0.15391185]
[1724848888634,8.656617,2541.4,2541.3,0.15391185]
[1724848888857,11.80449,2541.4,2541.3,0.15391185]
[1724848889018,7.8706,2541.1,2541.0,2.2625]
[1724848889336,7.8706,2541.1,2541.0,2.41648494]
[1724848889719,3.9353,2541.1,2541.0,2.41648494]
[1724848889920,3.9353,2541.1,2541.0,2.2625]
[1724848890104,3.9353,2541.1,2541.0,2.41648494]
[1724848891494,7.8706,2541.1,2541.0,2.41648494]
[1724848891695,3.9353,2541.1,2541.0,2.41648494]
[1724848891889,7.8706,2541.1,2541.0,2.41648494]
[1724848892134,3.9353,2541.1,2541.0,2.41648494]
[1724848892337,7.8706,2541.1,2541.0,2.41648494]
[1724848892634,3.9353,2541.1,2541.0,2.41648494]
[1724848893231,7.8706,2541.1,2541.0,2.41648494]
[1724848894134,7.8706,2541.1,2541.0,2.2625]
[1724848896845,7.8706,2541.1,2540.3,2.2835]
[1724848896846,3.93585,2540.8,2540.3,2.2835]
[1724848897139,3.93585,2540.8,2540.4,0.15443941]
[1724848897347,3.93585,2540.8,2540.5,2.2835]
[1724848897711,3.93585,2540.8,2540.6,0.15439066]
[1724848898447,3.93585,2540.8,2540.6,0.39817973]
[1724848898959,3.93592,2540.7,2540.6,0.39817973]
[1724848900749,7.87184,2540.7,2540.6,0.15439066]
[1724848901114,7.87214,2540.6,2540.5,2.2835]
[1724848904469,7.87214,2540.6,2540.5,2.43791503]
[1724848904766,3.93663,2540.3,2539.8,2.3876]
[1724848904953,3.93663,2540.3,2539.8,2.781338]
[1724848905124,3.93663,2540.3,2540.0,2.3876]
[1724848905319,3.93663,2540.3,2540.1,0.39327256]
[1724848905732,3.93662,2540.3,2540.1,0.39327256]
[1724848907865,7.87326,2540.3,2540.1,0.39327256]
[1724848908828,3.93662,2540.3,2540.1,0.39327256]
[1724848909643,0.98474997,2541.3,2540.1,0.39327256]
[1724848909644,3.93601,2540.7,2540.2,2.35612471]
[1724848909846,3.9361,2540.6,2540.4,2.2774]
[1724848910054,3.9361,2540.6,2540.5,2.53421572]
[1724848910371,3.9361,2540.6,2540.5,2.95808728]
[1724848911068,3.9361,2540.6,2540.5,2.87937156]
[1724848911438,3.93577,2540.8,2540.5,2.87937156]
[1724848911629,3.93577,2540.8,2540.7,2.4343]
[1724848912056,3.93577,2540.8,2540.7,2.58920135]
[1724848912864,7.87154,2540.8,2540.7,2.58920135]
[1724848913255,7.87154,2540.8,2540.7,2.4343]
[1724848913655,7.87154,2540.8,2540.7,0.1555814]
[1724848913976,3.93619,2540.6,2540.4,2.4079]
[1724848914467,3.93619,2540.6,2540.5,0.15562108]
[1724848914725,3.93593,2540.7,2540.5,0.23434039]
[1724848914869,3.93593,2540.7,2540.6,2.42]
[1724848915200,0.41197766,2541.8,2540.6,2.42]
[1724848915201,3.9346,2541.6,2541.1,6.35529]
[1724848915414,3.93441,2541.7,2541.3,2.3039]
[1724848915573,3.93441,2541.7,2541.4,0.07868413]
[1724848915759,3.93456,2541.6,2541.5,2.3039]
[1724848916391,3.93456,2541.6,2541.5,2.45869708]
[1724848921276,3.93423,2541.8,2541.5,2.45869708]
[1724848921277,3.93438,2541.7,2541.5,2.45869708]
[1724848921487,3.93422,2541.8,2541.6,0.07868461]
[1724848921783,3.93422,2541.8,2541.7,0.15364221]
[1724848921966,3.934,2542.0,2541.8,2.3025]
[1724848922209,3.934,2542.0,2541.8,2.38117753]
[1724848922412,3.934,2542.0,2541.9,0.15346662]
[1724848923008,7.86759,2542.1,2541.9,0.15346662]
[1724848923209,3.93391,2542.0,2541.9,0.15346662]
[1724848924318,3.93376,2542.1,2541.9,0.15346662]
[1724848924739,7.86713,2542.3,2542.0,2.2915]
[1724848925014,3.9336,2542.2,2542.1,0.15321856]
[1724848925446,3.93354,2542.3,2542.1,0.15321856]
[1724848925956,7.86708,2542.3,2542.1,0.15321856]
[1724848926260,3.93289,2542.7,2542.2,2.4376]
[1724848926411,3.93289,2542.7,2542.4,2.4376]
[1724848926850,3.93289,2542.7,2542.5,0.15312119]
[1724848927273,3.93268,2542.8,2542.5,0.23177816]
[1724848927659,3.93283,2542.7,2542.5,0.15312119]
[1724848927963,8.259243,2542.6,2542.5,0.15312119]
[1724848928177,7.86596,2542.6,2542.5,0.15312119]
[1724848928963,3.93344,2542.3,2542.2,2.2711]
[1724848929326,7.86688,2542.3,2542.2,2.42429421]
[1724848929773,3.93344,2542.3,2542.2,2.42429421]
[1724848930231,3.93211,2543.2,2542.2,6.60024363]
[1724848930438,0.4198,2543.3,2542.3,2.47144939]
[1724848930439,3.93223,2543.1,2542.3,2.47144939]
[1724848930669,3.9329,2542.7,2542.3,3.30412069]
[1724848930968,3.9329,2542.7,2542.3,2.62404839]
[1724848931181,3.93262,2542.9,2542.3,2.62404839]
[1724848931365,3.93262,2542.9,2542.4,2.3987]
[1724848931546,3.93262,2542.9,2542.5,2.52954758]
[1724848931547,3.93252,2542.9,2542.5,2.52954758]
[1724848931743,3.93252,2542.9,2542.6,0.49282476]
[1724848931936,3.93252,2542.9,2542.7,0.23058758]
[1724848932138,7.86511,2542.9,2542.7,0.23058758]
[1724848932462,3.93252,2542.9,2542.7,0.23058758]
[1724848932866,3.93252,2542.9,2542.7,0.15193999]
[1724848933581,3.93252,2542.9,2542.8,2.3783]
[1724848933936,3.93252,2542.9,2542.8,2.52770498]
[1724848935288,8.651669,2542.9,2542.8,0.14940498]
[1724848935585,8.651669,2542.9,2542.0,2.3783]
[1724848935586,3.93351,2542.3,2542.0,2.3783]
[1724848935733,7.86705,2542.3,2542.0,2.61613]
[1724848935934,3.93351,2542.3,2542.0,2.61613]
[1724848936146,3.93368,2542.2,2542.0,2.61613]
[1724848936349,3.93351,2542.3,2542.1,0.14463868]
[1724848936579,3.93323,2542.5,2542.2,2.3783]
[1724848936780,3.93323,2542.5,2542.3,0.22325012]
[1724848937720,3.93283,2542.7,2542.4,2.3783]
[1724848937882,3.93283,2542.7,2542.5,0.07865398]
[1724848938083,3.93283,2542.7,2542.5,0.22319529]
[1724848938802,3.93298,2542.6,2542.5,0.22319529]
[1724848939010,3.93298,2542.6,2542.5,0.14454131]
[1724848939214,3.93277,2542.8,2542.5,0.43332263]
[1724848939393,3.93277,2542.8,2542.6,2.4432]
[1724848939799,3.93277,2542.8,2542.7,0.14449264]
[1724848941294,3.93262,2542.9,2542.7,0.14449264]
[1724848941489,3.93262,2542.9,2542.7,0.22314049]
[1724848941490,3.93267,2542.8,2542.7,0.22314049]
[1724848941744,3.93267,2542.8,2542.7,0.14449264]
[1724848942326,7.86534,2542.8,2542.7,0.14449264]
[1724848942523,9.045115,2542.8,2542.7,0.14449264]
[1724848943800,7.86534,2542.8,2542.7,0.14449264]
[1724848946960,7.86564,2542.7,2542.6,2.4432]
[1724848947367,7.86564,2542.7,2542.6,2.58779844]
[1724848948068,7.86564,2542.7,2542.6,0.14459844]
[1724848948069,12.978276,2542.7,2542.6,0.14459844]
[1724848948422,7.86658,2542.4,2542.3,2.4271]
[1724848948766,7.86658,2542.4,2541.6,3.9345]
[1724848948767,7.868,2542.0,2541.6,2.4452]
[1724848948949,7.868,2542.0,2541.5,3.93457]
[1724848948950,3.93398,2542.0,2541.8,2.4452]
[1724848949126,7.86801,2542.0,2541.8,2.4452]
[1724848949326,7.86801,2542.0,2541.9,0.14480503]
[1724848949761,3.93398,2542.0,2541.9,0.14480503]
[1724848950063,3.93369,2542.2,2542.0,2.4018]
[1724848950263,3.93369,2542.2,2542.0,2.48046809]
[1724848950570,3.93345,2542.3,2542.2,2.4018]
[1724848950870,3.93345,2542.3,2542.2,2.54683065]
[1724848954487,7.86704,2542.3,2542.2,2.54683065]
[1724848959181,3.93322,2542.5,2542.2,2.54683065]
[1724848959384,7.86644,2542.5,2542.3,0.07865969]
[1724848959581,3.93322,2542.5,2542.4,0.14519009]
[1724848960508,3.93322,2542.5,2542.4,2.53779009]
[1724848960721,3.93294,2542.7,2542.4,2.82490337]